bitfinex/quotes_SOLUSD_20250415
["timestamp","ask_amount","ask_price","bid_price","bid_amount"]
[1744720520932,19.84226068,131.81,131.8,5.0]
[1744720521130,30.28226068,131.81,131.8,5.0]
[1744720521550,10.44,131.81,131.8,5.0]
[1744720521937,30.28226068,131.81,131.8,5.0]
[1744720522134,37.86886068,131.81,131.8,5.0]
[1744720522355,43.90946068,131.81,131.8,5.0]
[1744720524245,16.4806,131.81,131.8,5.0]
[1744720525334,10.44,131.81,131.8,5.0]
[1744720526852,10.44,131.81,131.8,10.0]
[1744720527058,37.86886068,131.81,131.8,10.0]
[1744720529139,10.44,131.81,131.8,10.0]
[1744720529339,10.44,131.81,131.8,56.07910954]
[1744720529544,30.28226068,131.85,131.8,56.07910954]
[1744720529746,19.84226068,131.84,131.8,10.0]
[1744720530155,19.84226068,131.83,131.8,10.0]
[1744720530350,19.84226068,131.84,131.8,10.0]
[1744720531461,27.42746068,131.84,131.8,10.0]
[1744720532140,19.84226068,131.82,131.8,10.0]
[1744720532339,19.84226068,131.81,131.8,10.0]
[1744720533461,27.42886068,131.81,131.8,10.0]
[1744720533859,81.6,131.83,131.8,10.0]
[1744720534059,81.6,131.83,131.8,29.84226068]
[1744720534652,81.6,131.83,131.81,19.84226068]
[1744720535661,81.6,131.83,131.82,19.84226068]
[1744720535963,10.44,131.85,131.82,19.84226068]
[1744720536542,19.84226068,131.84,131.8,34.84226068]
[1744720536954,19.84226068,131.82,131.8,15.0]
[1744720537567,19.84226068,131.81,131.8,15.0]
[1744720537949,27.42886068,131.81,131.8,15.0]
[1744720538466,27.42856068,131.82,131.8,15.0]
[1744720540550,109.02856068,131.82,131.8,15.0]
[1744720540882,81.6,131.82,131.8,15.0]
[1744720542073,92.04,131.82,131.8,15.0]
[1744720542253,10.44,131.82,131.81,19.84226068]
[1744720543373,10.44,131.82,131.81,27.42886068]
[1744720544671,10.44,131.82,131.81,19.84226068]
[1744720545650,10.44,131.82,131.81,24.84226068]
[1744720546055,10.44,131.82,131.81,5.0]
[1744720552481,10.44,131.82,131.81,43.64417874]
[1744720554481,10.44,131.82,131.81,5.0]
[1744720559292,18.0261,131.82,131.81,5.0]
[1744720559597,10.44,131.82,131.81,5.0]
[1744720561787,10.44,131.82,131.81,12.5866]
[1744720561989,1.6374,131.89,131.82,18.64964886]
[1744720561990,10.44,131.86,131.82,18.64964886]
[1744720562175,10.503,131.9,131.85,12.40792988]
[1744720562376,10.503,131.9,131.87,12.40792988]
[1744720562677,10.503,131.9,131.88,12.40792988]
[1744720564697,10.503,131.9,131.87,12.40792988]
[1744720564981,30.49252988,131.9,131.85,12.40792988]
[1744720565406,10.503,131.9,131.87,12.40792988]
[1744720565582,10.503,131.9,131.88,12.40792988]
[1744720566122,10.503,131.9,131.87,12.40792988]
[1744720566676,30.49242988,131.9,131.85,12.40792988]
[1744720567602,10.503,131.9,131.87,19.99082988]
[1744720567807,10.503,131.9,131.87,12.40792988]
[1744720568004,18.0846,131.9,131.86,12.40792988]
[1744720568297,30.49252988,131.9,131.85,19.99222988]
[1744720568505,10.503,131.9,131.86,12.40792988]
[1744720568704,10.503,131.9,131.87,12.40792988]
[1744720570203,10.503,131.9,131.86,12.40792988]
[1744720570204,18.0846,131.9,131.86,12.40792988]
[1744720570408,30.49252988,131.9,131.85,12.40792988]
[1744720571405,30.49252988,131.9,131.86,12.40792988]
[1744720571607,10.503,131.9,131.87,12.40792988]
[1744720573502,10.503,131.9,131.87,19.99102988]
[1744720573807,10.503,131.9,131.88,12.40792988]
[1744720578714,10.503,131.9,131.87,12.40792988]
[1744720579898,10.503,131.9,131.87,19.99102988]
[1744720580812,10.503,131.9,131.87,12.40792988]
[1744720581911,10.503,131.9,131.87,19.99102988]
[1744720585723,10.503,131.9,131.89,12.40792988]
[1744720585912,0.063,131.9,131.89,31.05757874]
[1744720586591,0.063,131.9,131.89,38.63957874]
[1744720589230,0.063,131.9,131.89,26.23164886]
[1744720589531,0.063,131.9,131.89,38.63957874]
[1744720590635,0.03,131.93,131.92,44.64964886]
[1744720590822,0.0001,131.93,131.92,63.35067874]
[1744720591515,0.0001,131.93,131.92,70.93097874]
[1744720592331,0.03,131.94,131.93,18.64964886]
[1744720592509,0.03,131.94,131.93,31.05757874]
[1744720593311,0.03,131.94,131.93,18.64964886]
[1744720593527,0.03,131.94,131.92,12.40792988]
[1744720595930,0.03,131.94,131.92,17.40792988]
[1744720597226,0.03,131.94,131.93,12.40792988]
[1744720597425,0.03,131.94,131.93,31.05757874]
[1744720599037,0.03,131.94,131.93,38.63727874]
[1744720600552,0.03,131.96,131.95,46.24084886]
[1744720600713,0.03,131.96,131.95,58.64877874]
[1744720600918,0.03,131.96,131.95,71.05670862]
[1744720601250,0.03,131.96,131.95,78.63530862]
[1744720601449,0.0001,131.96,131.95,52.63530862]
[1744720601620,1.0443978,131.99,131.98,26.0]
[1744720601927,1.0443978,131.99,131.98,57.05757874]
[1744720603451,1.0443978,131.99,131.98,64.63447874]
[1744720604532,1.0443978,131.99,131.95,32.94562988]
[1744720604733,1.0443978,131.99,131.93,18.9491]
[1744720604930,1.0443978,131.99,131.96,12.40792988]
[1744720605252,1.0443978,131.99,131.97,12.40792988]
[1744720606252,94.00792988,131.98,131.92,5.0]
[1744720606449,12.40792988,131.96,131.92,5.0]
[1744720606633,12.40792988,131.95,131.92,5.0]
[1744720607653,19.98672988,131.95,131.92,5.0]
[1744720609050,7.5788,131.95,131.92,5.0]
[1744720609272,19.98672988,131.95,131.92,5.0]
[1744720609641,30.40612988,131.96,131.92,12.5802]
[1744720609830,17.9982,131.96,131.92,24.98812988]
[1744720610029,17.9982,131.96,131.92,17.40792988]
[1744720611034,17.9982,131.96,131.92,5.0]
[1744720611464,30.40612988,131.96,131.92,5.0]
[1744720613287,10.42,131.96,131.92,24.98802988]
[1744720614543,12.40792988,131.95,131.92,5.0]
[1744720614854,12.40792988,131.94,131.92,5.0]
[1744720616663,12.40792988,131.95,131.92,5.0]
[1744720616867,7.5788,131.95,131.92,5.0]
[1744720617250,19.98672988,131.95,131.92,5.0]
[1744720618564,7.5788,131.95,131.92,5.0]
[1744720618762,10.42,131.96,131.92,24.98822988]
[1744720620245,10.42,131.96,131.93,12.40792988]
[1744720620444,10.42,131.96,131.92,12.5803]
[1744720620445,10.42,131.96,131.95,31.05757874]
[1744720620645,1.0443978,131.99,131.96,7.578]
[1744720620940,1.0443978,131.99,131.97,12.40792988]
[1744720621243,1.0443978,131.99,131.98,12.40792988]
[1744720621571,1.0443978,131.99,131.97,12.40792988]
[1744720622780,1.0443978,131.99,131.98,38.63447874]
[1744720623868,1.0443978,131.99,131.97,12.40792988]
[1744720624164,1.0443978,131.99,131.96,12.40792988]
[1744720624376,1.0443978,131.99,131.97,12.40792988]
[1744720626060,1.0443978,131.99,131.96,12.40792988]
[1744720626474,8.6209978,131.99,131.96,12.40792988]
[1744720626657,1.0443978,131.99,131.96,12.40792988]
[1744720626983,1.0443978,131.99,131.97,12.40792988]
[1744720627358,1.0443978,131.99,131.98,31.05757874]
[1744720628971,1.0443978,131.99,131.96,33.5778]
[1744720629164,1.0443978,131.99,131.96,45.98572988]
[1744720629792,1.0443978,131.99,131.97,12.40792988]
[1744720630794,1.0443978,131.99,131.98,31.05757874]
[1744720631079,1.0443978,131.99,131.98,64.63447874]
[1744720631275,0.03,132.0,131.99,18.64964886]
[1744720631489,0.03,132.0,131.99,31.05757874]
[1744720632187,0.03,132.0,131.98,33.5769]
[1744720632388,0.03,132.0,131.99,12.40792988]
[1744720633287,0.03,132.0,131.98,19.7969017]
[1744720634067,0.03,132.0,131.99,38.44655056]
[1744720635090,0.03,132.0,131.99,46.02285056]
[1744720638491,0.03,132.0,131.99,72.02285056]
[1744720650612,0.03,132.04,132.03,26.0]
[1744720650903,10.42,132.1,132.07,44.64964886]
[1744720651085,7.5689,132.12,132.07,38.44655056]
[1744720651291,19.7969017,132.12,132.07,38.44655056]
[1744720651598,19.7969017,132.11,132.07,38.44655056]
[1744720652002,27.3672017,132.1,132.05,19.7969017]
[1744720652195,19.7969017,132.07,132.03,38.44655056]
[1744720652704,30.2169017,132.07,132.03,38.44655056]
[1744720652891,37.7886017,132.07,132.03,38.44655056]
[1744720653088,19.7969017,132.04,131.97,1.5906]
[1744720653302,12.37151625,132.03,131.98,12.37151625]
[1744720653486,22.79151625,132.02,131.99,18.64964886]
[1744720654495,30.36631625,132.02,131.99,18.64964886]
[1744720655006,30.36631625,132.02,131.98,18.64964886]
[1744720655690,17.9948,132.02,131.98,12.37151625]
[1744720656399,17.9948,132.02,131.98,31.02116511]
[1744720656605,30.36631625,132.02,131.98,18.64964886]
[1744720657105,10.42,132.02,132.0,12.37151625]
[1744720657608,10.42,132.02,132.0,18.64964886]
[1744720661090,10.42,132.02,132.0,31.02116511]
[1744720662409,10.42,132.02,132.0,38.59686511]
[1744720662596,10.42,132.02,132.01,12.37151625]
[1744720662913,10.42,132.02,132.0,31.02116511]
[1744720663112,10.42,132.02,131.98,19.94821625]
[1744720663285,22.79151625,132.02,131.99,18.64964886]
[1744720663488,10.42,132.02,131.99,18.64964886]
[1744720663896,10.42,132.02,131.99,26.22594886]
[1744720664508,10.42,132.02,131.99,38.59746511]
[1744720665697,10.42,132.02,131.99,18.64964886]
[1744720666992,17.9947,132.02,131.98,19.94811625]
[1744720667202,30.36621625,132.02,131.97,38.59836511]
[1744720667412,30.36621625,132.02,131.97,31.02116511]
[1744720667703,17.9947,132.02,131.97,38.59846511]
[1744720667912,10.42,132.02,131.99,12.37151625]
[1744720668999,30.36611625,132.02,131.97,31.02116511]
[1744720669203,30.36611625,132.02,131.97,38.59856511]
[1744720670014,30.36611625,132.02,131.98,12.37151625]
[1744720670404,30.36611625,132.02,131.97,38.59856511]
[1744720671215,30.36611625,132.02,131.97,31.02116511]
[1744720672013,30.36611625,132.02,131.97,38.59856511]
[1744720672395,17.9946,132.02,131.98,12.37151625]
[1744720672602,10.42,132.02,131.98,12.37151625]
[1744720672809,10.42,132.02,131.99,12.37151625]
[1744720673209,10.42,132.02,131.99,19.94781625]
[1744720673412,10.42,132.02,131.98,19.94811625]
[1744720674613,10.42,132.02,131.97,18.64964886]
[1744720674614,12.37151625,132.01,131.97,18.64964886]
[1744720674814,12.37151625,131.98,131.94,0.063]
[1744720674993,12.37151625,131.95,131.94,0.063]
[1744720675316,19.95011625,131.95,131.94,0.063]
[1744720676722,7.5786,131.95,131.94,0.063]
[1744720677424,19.95011625,131.95,131.94,0.063]
[1744720680536,12.37151625,131.95,131.94,0.063]
[1744720680854,12.37151625,131.96,131.94,0.063]
[1744720681005,12.37151625,131.95,131.94,0.063]
[1744720682021,112.9713325,131.95,131.94,0.063]
[1744720682636,108.17841625,131.95,131.94,0.063]
[1744720684205,64.9499325,131.95,131.94,0.063]
[1744720685727,38.9499325,131.95,131.93,0.0001]
[1744720685941,26.0,131.91,131.9,0.063]
[1744720686123,48.79151625,131.91,131.9,0.063]
[1744720687427,56.37241625,131.91,131.9,0.063]
[1744720688022,26.0,131.88,131.87,5.0]
[1744720688221,50.7430325,131.88,131.87,5.0]
[1744720688533,1.6246,131.87,131.84,0.063]
[1744720688732,10.42,131.86,131.84,0.063]
[1744720691235,10.42,131.86,131.85,12.37151625]
[1744720691440,10.42,131.86,131.85,38.60546511]
[1744720691641,10.42,131.9,131.86,18.64964886]
[1744720691819,10.42,131.9,131.88,12.37151625]
[1744720692629,10.42,131.9,131.87,12.37151625]
[1744720693617,22.79151625,131.9,131.85,12.37151625]
[1744720694636,10.42,131.9,131.86,12.37151625]
[1744720694947,10.42,131.9,131.87,12.37151625]
[1744720695459,10.42,131.9,131.89,31.02116511]
[1744720695617,10.42,131.9,131.89,38.60316511]
[1744720695818,10.42,131.94,131.9,18.64964886]
[1744720696020,10.42,131.94,131.92,12.37151625]
[1744720696329,10.42,131.94,131.93,12.37151625]
[1744720696531,10.42,131.94,131.92,12.37151625]
[1744720697747,10.42,131.94,131.92,7.5802]
[1744720698251,10.42,131.94,131.91,19.95211625]
[1744720699049,12.37151625,131.93,131.88,31.02116511]
[1744720700454,12.37151625,131.93,131.88,38.60356511]
[1744720701049,12.37151625,131.92,131.87,9.1176]
[1744720701355,12.37151625,131.89,131.85,19.95581625]
[1744720701649,22.79151625,131.89,131.85,19.95581625]
[1744720702238,22.79151625,131.89,131.85,7.5843]
[1744720702430,12.37151625,131.88,131.85,7.5843]
[1744720702945,12.37151625,131.88,131.84,31.08416511]
[1744720702946,12.37151625,131.88,131.84,26.29734886]
[1744720704445,12.37151625,131.88,131.84,0.063]
[1744720704446,12.37151625,131.87,131.84,0.063]
[1744720704745,12.37151625,131.86,131.84,0.063]
[1744720704936,93.97151625,131.85,131.84,0.063]
[1744720705136,101.45220447,131.85,131.84,0.063]
[1744720705735,81.6,131.85,131.84,0.063]
[1744720706122,101.45220447,131.85,131.84,0.063]
[1744720706322,109.03650447,131.85,131.84,0.063]
[1744720709132,81.6,131.85,131.84,0.063]
[1744720709333,81.6,131.85,131.84,19.91520447]
[1744720709535,99.6023,131.89,131.84,19.91520447]
[1744720709733,99.6023,131.89,131.87,19.85220447]
[1744720709734,92.02,131.89,131.87,19.85220447]
[1744720709929,10.42,131.92,131.88,19.85220447]
[1744720710143,10.42,131.92,131.9,19.85220447]
[1744720710350,10.42,131.92,131.88,18.64964886]
[1744720710544,10.42,131.92,131.91,19.85220447]
[1744720710749,10.42,131.92,131.91,27.43310447]
[1744720711239,10.42,131.92,131.91,7.5809]
[1744720711436,10.42,131.92,131.89,19.85220447]
[1744720711647,10.42,131.92,131.88,46.08415333]
[1744720712048,37.85260447,131.92,131.87,53.43510447]
[1744720712247,111.87220447,131.92,131.87,53.43510447]
[1744720712842,99.6004,131.92,131.88,19.85220447]
[1744720713038,119.45260447,131.92,131.87,19.85220447]
[1744720713238,19.85220447,131.91,131.86,27.43570447]
[1744720713650,119.45260447,131.92,131.87,19.85220447]
[1744720714157,92.02,131.92,131.89,19.85220447]
[1744720714349,99.6004,131.92,131.88,19.85220447]
[1744720714558,119.45260447,131.92,131.87,19.85220447]
[1744720714935,19.85220447,131.91,131.86,38.50185333]
[1744720715135,19.85220447,131.9,131.86,38.50185333]
[1744720715956,27.43370447,131.9,131.86,46.08535333]
[1744720716452,27.43370447,131.9,131.85,27.43650447]
[1744720716649,19.85220447,131.89,131.85,18.64964886]
[1744720716831,19.85220447,131.89,131.84,53.49990447]
[1744720717036,19.85220447,131.88,131.84,26.063]
[1744720717230,19.85220447,131.88,131.84,33.6478]
[1744720717658,101.45220447,131.89,131.84,53.50000447]
[1744720717856,81.6,131.89,131.86,27.43600447]
[1744720718044,81.6,131.89,131.86,7.5838]
[1744720718859,81.6,131.89,131.84,26.063]
[1744720719039,101.45220447,131.89,131.84,45.91520447]
[1744720719655,81.6,131.89,131.85,19.85220447]
[1744720719840,81.6,131.89,131.86,27.43550447]
[1744720720540,92.02,131.92,131.88,19.85220447]
[1744720720743,10.42,131.92,131.9,19.85220447]
[1744720720972,10.42,131.92,131.91,19.85220447]
[1744720721142,92.02,131.96,131.91,38.50185333]
[1744720721338,92.02,131.96,131.93,19.85220447]
[1744720721538,92.02,131.96,131.92,19.85220447]
[1744720721852,92.02,131.96,131.91,18.64964886]
[1744720722155,92.02,131.96,131.93,19.85220447]
[1744720723156,10.42,131.96,131.93,19.85220447]
[1744720724159,10.42,131.96,131.93,27.43170447]
[1744720724363,10.42,131.96,131.94,19.85220447]
[1744720725354,10.42,131.96,131.95,19.85220447]
[1744720725563,10.42,131.96,131.95,38.50185333]
[1744720725775,92.05,132.0,131.95,38.50185333]
[1744720725931,92.05,132.0,131.97,19.85220447]
[1744720726137,92.05,132.0,131.96,27.43010447]
[1744720726348,92.05,132.0,131.97,19.85220447]
[1744720727152,92.05,132.0,131.96,27.43010447]
[1744720727464,92.05,132.0,131.97,19.85220447]
[1744720727850,92.05,132.0,131.96,27.43010447]
[1744720730270,92.05,132.0,131.97,26.22694886]
[1744720730271,10.45,132.0,131.97,26.22694886]
[1744720730445,19.85220447,131.98,131.91,1.5889]
[1744720730649,19.85220447,131.94,131.9,27.43340447]
[1744720730966,30.27220447,131.95,131.9,27.43340447]
[1744720731168,10.42,131.95,131.91,19.85220447]
[1744720732174,10.42,131.95,131.92,7.5803]
[1744720732350,10.42,131.95,131.92,27.43250447]
[1744720732875,10.42,131.95,131.91,27.43280447]
[1744720735278,10.42,131.95,131.92,19.85220447]
[1744720736571,101.45220447,131.97,131.92,27.43190447]
[1744720736785,0.03,132.0,131.97,18.64964886]
[1744720736972,0.03,132.0,131.99,19.85220447]
[1744720737269,0.03,132.0,131.97,19.85220447]
[1744720738988,30.27220447,131.99,131.94,21.41450447]
[1744720739280,30.27220447,131.99,131.94,19.85220447]
[1744720739477,30.27220447,131.99,131.95,19.85220447]
[1744720739678,10.42,131.99,131.96,38.50185333]
[1744720740894,10.42,131.99,131.96,18.64964886]
[1744720741078,37.84850447,131.99,131.94,27.43100447]
[1744720741466,10.42,131.99,131.96,38.50185333]
[1744720741782,10.42,131.99,131.97,19.85220447]
[1744720742285,0.03,132.0,131.99,18.64964886]
[1744720742453,0.03,132.0,131.99,38.50185333]
[1744720743062,0.03,132.0,131.99,46.07815333]
[1744720743353,0.03,132.0,131.99,72.07815333]
[1744720753198,0.03,132.0,131.99,64.58943819]
[1744720763809,0.03,132.0,131.99,12.36348933]
[1744720764101,12.39348933,132.0,131.96,26.0]
[1744720764277,0.03,132.0,131.96,38.36348933]
[1744720764474,0.03,132.0,131.98,12.36348933]
[1744720765202,0.03,132.0,131.99,12.36348933]
[1744720765401,0.03,132.0,131.99,31.01313819]
[1744720765885,0.03,132.0,131.99,38.58943819]
[1744720767077,0.03,132.0,131.99,31.01313819]
[1744720776090,0.03,132.0,131.99,18.64964886]
[1744720776788,0.03,132.0,131.99,31.01313819]
[1744720779116,22.79348933,132.0,131.94,18.64964886]
[1744720779302,7.5763,131.99,131.96,18.64964886]
[1744720781614,7.5763,131.99,131.96,31.01313819]
[1744720782621,18.006,132.0,131.97,12.36348933]
[1744720782791,10.43,132.0,131.99,12.36348933]
[1744720783104,0.03,132.0,131.99,12.36348933]
[1744720785396,0.03,132.0,131.99,18.64964886]
[1744720788406,0.03,132.0,131.98,12.36348933]
[1744720789219,0.03,132.0,131.97,31.01313819]
[1744720789423,12.39348933,132.0,131.95,38.36348933]
[1744720789719,10.4,131.99,131.95,38.36348933]
[1744720790495,7.5769,131.98,131.95,38.36348933]
[1744720794516,7.5769,131.98,131.94,18.64964886]
[1744720794721,26.5191,131.98,131.94,31.01313819]
[1744720795026,38.88258933,131.98,131.94,18.64964886]
[1744720795234,7.5769,131.98,131.95,12.36348933]
[1744720796423,17.9766,131.99,131.97,12.36348933]
[1744720796614,17.9766,131.99,131.96,12.36348933]
[1744720798125,36.9174,131.99,131.95,12.36348933]
[1744720798317,49.28088933,131.99,131.94,31.01313819]
[1744720798516,12.36348933,131.98,131.93,12.36348933]
[1744720798828,12.36348933,131.96,131.92,18.64964886]
[1744720799232,11.32343721,131.96,131.92,18.64964886]
[1744720799428,11.32343721,131.94,131.9,18.64964886]
[1744720799611,21.72343721,131.94,131.9,18.64964886]
[1744720800234,7.5797,131.93,131.9,18.64964886]
[1744720800542,26.5291,131.93,131.89,11.32343721]
[1744720800720,11.32343721,131.91,131.83,1.5353]
[1744720801033,11.32343721,131.91,131.86,11.32343721]
[1744720801229,17.70483344,131.91,131.87,17.70483344]
[1744720801630,17.70483344,131.91,131.86,36.3544823]
[1744720802133,17.70483344,131.91,131.86,17.70483344]
[1744720802432,7.582,131.89,131.84,44.71264886]
[1744720802614,10.4,131.88,131.84,62.4174823]
[1744720802821,10.4,131.88,131.86,17.70483344]
[1744720803541,10.4,131.88,131.85,17.70483344]
[1744720804635,17.983,131.88,131.85,17.70951738]
[1744720805851,10.4,131.88,131.85,17.70951738]
[1744720807815,10.4,131.88,131.84,52.29734886]
[1744720808017,10.4,131.88,131.85,17.70951738]
[1744720809251,81.6,131.95,131.88,18.64964886]
[1744720809414,10.42,131.97,131.94,17.70951738]
[1744720809615,10.42,131.97,131.96,36.35916624]
[1744720810219,7.6058,132.0,131.96,36.35916624]
[1744720810413,7.6058,132.0,131.97,17.70951738]
[1744720810819,7.6058,132.0,131.96,36.35916624]
[1744720812352,0.03,131.97,131.96,36.35916624]
[1744720813040,0.03,131.97,131.95,17.70951738]
[1744720813232,28.10951738,131.96,131.92,17.70951738]
[1744720813443,10.4,131.96,131.93,17.70951738]
[1744720813640,17.9781,131.96,131.93,17.70951738]
[1744720814344,17.9781,131.96,131.92,17.70951738]
[1744720815261,54.63271738,131.96,131.91,17.70951738]
[1744720815418,7.5792,131.94,131.9,36.35916624]
[1744720815623,17.70951738,131.92,131.86,1.5023]
[1744720815926,17.70951738,131.89,131.84,25.35721738]
[1744720816235,17.70951738,131.89,131.84,17.77251738]
[1744720816635,17.70951738,131.88,131.84,0.063]
[1744720817021,17.70951738,131.87,131.84,0.063]
[1744720817326,10.4,131.86,131.84,0.063]
[1744720817630,10.4,131.86,131.84,17.77251738]
[1744720817830,10.4,131.86,131.84,0.063]
[1744720818635,10.4,131.86,131.84,17.77251738]
[1744720818953,10.4,131.86,131.85,36.35916624]
[1744720819120,10.4,131.9,131.85,36.35916624]
[1744720819321,10.4,131.9,131.89,17.70951738]
[1744720819639,10.4,131.9,131.88,17.70951738]
[1744720820822,17.9815,131.9,131.86,17.70951738]
[1744720821829,17.9815,131.9,131.85,26.23374886]
[1744720821830,35.69101738,131.9,131.85,36.35916624]
[1744720822024,17.70951738,131.87,131.84,0.063]
[1744720823343,28.34718797,131.86,131.84,0.063]
[1744720823546,10.4,131.85,131.84,0.063]
[1744720823863,17.9843,131.85,131.84,0.063]
[1744720824368,10.4,131.85,131.84,0.063]
[1744720825363,72.33148797,131.85,131.84,0.063]
[1744720825532,54.34718797,131.83,131.82,0.063]
[1744720825848,28.34718797,131.83,131.82,0.063]
[1744720826051,35.93268797,131.83,131.82,0.063]
[1744720829453,10.4,131.85,131.82,0.063]
[1744720829630,10.4,131.85,131.82,28.41018797]
[1744720829831,10.4,131.85,131.84,28.34718797]
[1744720830356,10.42,131.89,131.85,18.64964886]
[1744720830654,38.76718797,131.89,131.85,28.34718797]
[1744720830862,38.76718797,131.89,131.84,35.93208797]
[1744720832360,46.34928797,131.89,131.84,28.34718797]
[1744720832539,18.0021,131.89,131.85,28.34718797]
[1744720832854,10.42,131.89,131.85,18.64964886]
[1744720833060,10.42,131.89,131.86,28.34718797]
[1744720833254,10.42,131.89,131.85,28.34718797]
[1744720833255,18.0021,131.89,131.85,28.34718797]
[1744720835134,28.34718797,131.88,131.83,44.64964886]
[1744720835334,28.34718797,131.88,131.83,72.99683683]
[1744720835954,7.5832,131.88,131.84,28.34718797]
[1744720836663,18.0022,131.89,131.85,46.99683683]
[1744720836965,18.0022,131.89,131.86,28.34718797]
[1744720837760,18.0022,131.89,131.85,46.99683683]
[1744720838478,10.42,131.89,131.87,28.34718797]
[1744720838644,10.42,131.89,131.88,28.34718797]
[1744720839061,10.42,131.89,131.87,28.34718797]
[1744720839570,10.42,131.89,131.87,18.64964886]
[1744720839734,18.0022,131.89,131.85,46.99683683]
[1744720841163,18.0022,131.89,131.83,26.0]
[1744720841164,46.34938797,131.89,131.83,26.0]
[1744720841460,28.34718797,131.88,131.83,28.34718797]
[1744720841755,28.34718797,131.84,131.82,0.063]
[1744720841957,120.36718797,131.83,131.82,0.063]
[1744720842370,38.76718797,131.83,131.82,0.063]
[1744720842865,46.35268797,131.83,131.82,0.063]
[1744720843954,46.35268797,131.83,131.82,0.0001]
[1744720844352,26.0,131.81,131.79,0.063]
[1744720844569,82.69437594,131.81,131.79,0.063]
[1744720844754,90.28097594,131.81,131.79,0.063]
[1744720845062,100.68097594,131.81,131.79,0.063]
[1744720846664,72.33378797,131.81,131.79,0.063]
[1744720853169,100.68097594,131.81,131.79,0.063]
[1744720853677,72.33378797,131.81,131.79,0.063]
[1744720859582,46.33378797,131.81,131.79,0.063]
[1744720861379,35.7198896,131.81,131.79,0.063]
[1744720861588,25.3198896,131.81,131.79,0.063]
[1744720861761,35.7398896,131.81,131.79,0.063]
[1744720861960,18.0066,131.81,131.79,0.063]
[1744720862367,35.7398896,131.81,131.79,0.063]
[1744720863191,117.3398896,131.81,131.79,0.063]
[1744720864886,92.02,131.81,131.79,0.063]
[1744720865281,10.42,131.81,131.79,0.063]
[1744720865478,18.0066,131.81,131.79,0.063]
[1744720866065,35.7398896,131.81,131.79,0.063]
[1744720866382,10.42,131.81,131.79,0.063]
[1744720866987,35.7398896,131.81,131.79,0.063]
[1744720867687,28.1532896,131.81,131.79,0.063]
[1744720867888,10.42,131.81,131.8,59.03313846]
[1744720868192,10.42,131.85,131.81,25.03634886]
[1744720868378,10.42,131.85,131.82,17.7332896]
[1744720868781,10.42,131.85,131.82,25.3189896]
[1744720868990,10.42,131.85,131.82,17.7332896]
[1744720869176,35.7377896,131.85,131.8,15.063]
[1744720869492,17.7332896,131.84,131.8,15.063]
[1744720869666,17.7332896,131.84,131.8,22.6502]
[1744720869867,17.7332896,131.84,131.8,32.7962896]
[1744720870290,35.7377896,131.85,131.8,40.3834896]
[1744720871368,35.7377896,131.85,131.8,32.7962896]
[1744720871590,35.7377896,131.85,131.8,40.3834896]
[1744720872090,35.7377896,131.85,131.8,32.7962896]
[1744720872261,17.7332896,131.84,131.8,15.063]
[1744720872468,35.7377896,131.85,131.8,32.7962896]
[1744720872678,35.7377896,131.85,131.8,22.6501]
[1744720872679,18.0045,131.85,131.8,22.6501]
[1744720872881,10.42,131.85,131.81,17.7332896]
[1744720873078,10.42,131.85,131.83,17.7332896]
[1744720873482,10.42,131.85,131.84,17.7332896]
[1744720874683,0.03,131.87,131.85,18.64964886]
[1744720874890,0.03,131.87,131.86,36.38293846]
[1744720875394,0.03,131.87,131.84,19.3307896]
[1744720875584,17.7332896,131.86,131.82,69.96873846]
[1744720878496,35.7382896,131.84,131.8,22.6499]
[1744720878694,35.7382896,131.84,131.8,32.7962896]
[1744720878903,28.1532896,131.84,131.8,40.3833896]
[1744720879404,46.3620009,131.84,131.8,51.0072009]
[1744720879600,46.3620009,131.84,131.8,15.063]